fUSD/lending_fUSD_20250124
["ID","MTS","AMOUNT","RATE_DAILY","PERIOD"]
[350270690,1737754240205,-500.0,0.0001954,2]
[350270692,1737754240214,-500.0,0.0001954,2]
[350270694,1737754240223,-506.22927906,0.0001954,2]
[350270696,1737754240232,-500.0,0.0001954,2]
[350270698,1737754240241,-500.0,0.0001954,2]
[350270699,1737754240251,-605.9,0.0001954,2]
[350270701,1737754240259,-666.26,0.0001954,2]
[350270703,1737754240269,-586.99,0.0001954,2]
[350270705,1737754240278,-507.61955957,0.0001954,2]
[350270707,1737754240287,-500.0,0.0001954,2]
[350270709,1737754240296,-500.0,0.0001954,2]
[350270711,1737754240306,-559.08,0.0001954,2]
[350270713,1737754240315,-500.0,0.0001954,2]
[350270715,1737754240324,-500.0,0.0001954,2]
[350270717,1737754240334,-206.94849455,0.0001954,2]
[350270719,1737754240343,-500.0,0.0001954,2]
[350270721,1737754240352,-500.0,0.0001954,2]
[350270723,1737754240361,-956.0,0.0001954,2]
[350270725,1737754240370,-500.0,0.0001954,2]
[350270727,1737754240379,-500.0,0.0001954,2]
[350270729,1737754240389,-500.0,0.0001954,2]
[350270731,1737754240399,-500.0,0.0001954,2]
[350270733,1737754240408,-500.0,0.0001954,2]
[350270735,1737754240418,-545.45,0.0001954,2]
[350270736,1737754240430,-1000.0,0.0001954,2]
[350270737,1737754240440,-500.0,0.0001954,2]
[350270738,1737754240451,-500.0,0.0001954,2]
[350270739,1737754240469,-501.37,0.0001954,2]
[350270740,1737754240480,-500.0,0.0001954,2]
[350270741,1737754240491,-620.35,0.0001954,2]
[350270742,1737754240503,-629.25,0.0001954,2]
[350270743,1737754240512,-500.0,0.0001954,2]
[350270744,1737754240522,-674.5,0.0001954,2]
[350270745,1737754240531,-500.0,0.0001954,2]
[350270746,1737754240541,-500.0,0.0001954,2]
[350270747,1737754240550,-500.0,0.0001954,2]
[350270748,1737754240560,-500.0,0.0001954,2]
[350270749,1737754240570,-500.0,0.0001954,2]
[350270751,1737754240579,-836.52,0.0001954,2]
[350270753,1737754240588,-1028.07,0.0001954,2]
[350270755,1737754240598,-500.0,0.0001954,2]
[350270757,1737754240607,-519.84,0.0001954,2]
[350270759,1737754240616,-1194.61,0.0001954,2]
[350270761,1737754240626,-720.82,0.0001954,2]
[350270763,1737754240635,-500.0,0.0001954,2]
[350270765,1737754240645,-502.8271381,0.0001954,2]
[350270767,1737754240654,-500.0,0.0001954,2]
[350270768,1737754240664,-284.79929659,0.0001954,2]
[350270769,1737754240674,-500.0,0.0001954,2]
[350270770,1737754240689,-500.0,0.0001954,2]
[350270771,1737754240698,-500.0,0.0001954,2]
[350270772,1737754240708,-513.41074188,0.0001954,2]
[350270773,1737754240717,-500.0,0.0001954,2]
[350270774,1737754240727,-500.0,0.0001954,2]
[350270776,1737754240736,-500.0,0.0001954,2]
[350270778,1737754240745,-500.0,0.0001954,2]
[350270780,1737754240754,-500.0,0.0001954,2]
[350270782,1737754240763,-1226.74,0.0001954,2]
[350270784,1737754240773,-861.13,0.0001954,2]
[350270786,1737754240782,-500.0,0.0001954,2]
[350270788,1737754240791,-500.0,0.0001954,2]
[350270790,1737754240801,-500.0,0.0001954,2]
[350270792,1737754240810,-690.0,0.0001954,2]
[350270794,1737754240819,-500.0,0.0001954,2]
[350270796,1737754240829,-500.0,0.0001954,2]
[350270798,1737754240838,-519.49911781,0.0001954,2]
[350270800,1737754240848,-500.0,0.0001954,2]
[350270802,1737754240858,-500.0,0.0001954,2]
[350270804,1737754240867,-456.76,0.0001954,2]
[350270806,1737754240877,-500.0,0.0001954,2]
[350270808,1737754240887,-500.0,0.0001954,2]
[350270810,1737754240896,-500.0,0.0001954,2]
[350270812,1737754240906,-500.0,0.0001954,2]
[350270814,1737754240916,-1053.69,0.0001954,2]
[350270816,1737754240928,-500.0,0.0001954,2]
[350270818,1737754240937,-500.0,0.0001954,2]
[350270820,1737754240947,-500.0,0.0001954,2]
[350270821,1737754240956,-500.0,0.0001954,2]
[350270824,1737754240967,-500.0,0.0001954,2]
[350270826,1737754240977,-500.0,0.0001954,2]
[350270828,1737754240988,-540.47742849,0.0001954,2]
[350270829,1737754240998,-500.0,0.0001954,2]
[350270831,1737754241007,-854.37,0.0001954,2]
[350270834,1737754241018,-500.0,0.0001954,2]
[350270836,1737754241027,-500.0,0.0001954,2]
[350270838,1737754241036,-500.0,0.0001954,2]
[350270840,1737754241046,-500.0,0.0001954,2]
[350270841,1737754241056,-1585.77,0.0001954,2]
[350270843,1737754241065,-500.0,0.0001954,2]
[350270845,1737754241075,-500.0,0.0001954,2]
[350270847,1737754241097,-522.68027342,0.0001954,2]
[350270849,1737754241118,-500.0,0.0001954,2]
[350270852,1737754241139,-509.98219789,0.0001954,2]
[350270854,1737754241161,-500.0,0.00019541,2]
[350270855,1737754241184,-197.88,0.00019541,2]
[350270857,1737754241205,-158.47563007,0.00019547,2]
[350270859,1737754241227,-157.7634086,0.00019579,2]
[350270861,1737754241249,-8823.34904966,0.00019657,2]
[350270864,1737754241270,-500.0,0.00019676,2]
[350270866,1737754241283,-566.92,0.00019676,2]
[350270867,1737754241293,-500.0,0.00019676,2]
[350270869,1737754241302,-500.0,0.00019676,2]
[350270871,1737754241311,-551.89,0.00019676,2]
[350270873,1737754241321,-296.18,0.00019676,2]
[350270875,1737754241330,-500.0,0.00019676,2]
[350270877,1737754241339,-500.0,0.00019676,2]
[350270879,1737754241349,-500.0,0.00019676,2]
[350270881,1737754241358,-447.99256214,0.00019676,2]
[350270883,1737754241368,-625.67,0.00019676,2]
[350270885,1737754241378,-828.31,0.00019676,2]
[350270887,1737754241387,-1217.27,0.00019676,2]
[350270889,1737754241397,-630.82010714,0.00019676,2]
[350270891,1737754241406,-500.0,0.00019676,2]
[350270893,1737754241415,-495.074301,0.00019676,2]
[350270895,1737754241425,-500.0,0.00019676,2]
[350270897,1737754241436,-500.0,0.00019676,2]
[350270899,1737754241445,-500.0,0.00019677,2]
[350270901,1737754241455,-500.0,0.00019677,2]
[350270903,1737754241464,-382.65,0.00019677,2]
[350270905,1737754241473,-689.81,0.00019677,2]
[350270907,1737754241482,-290.37064,0.00019677,2]
[350270909,1737754241492,-500.0,0.00019677,2]
[350270911,1737754241502,-512.29533608,0.00019677,2]
[350270913,1737754241512,-500.0,0.00019677,2]
[350270915,1737754241521,-500.0,0.00019677,2]
[350270917,1737754241530,-334.56,0.00019677,2]
[350270919,1737754241539,-500.0,0.00019677,2]
[350270921,1737754241548,-500.0,0.00019677,2]
[350270923,1737754241557,-500.0,0.00019677,2]
[350270925,1737754241566,-500.0,0.00019677,2]
[350270927,1737754241576,-500.0,0.00019677,2]
[350270929,1737754241585,-500.0,0.00019677,2]
[350270931,1737754241595,-605.9,0.00019677,2]
[350270933,1737754241604,-666.26,0.00019677,2]
[350270935,1737754241614,-586.99,0.00019677,2]
[350270937,1737754241623,-500.0,0.00019677,2]
[350270939,1737754241632,-559.08,0.00019677,2]
[350270941,1737754241641,-500.0,0.00019677,2]
[350270943,1737754241650,-500.0,0.00019677,2]
[350270945,1737754241659,-500.0,0.00019677,2]
[350270947,1737754241668,-500.0,0.00019677,2]
[350270949,1737754241679,-956.0,0.00019677,2]
[350270951,1737754241688,-489.15769607,0.00019677,2]
[350270953,1737754241698,-313.64154723,0.00019677,2]
[350270955,1737754241707,-500.0,0.00019677,2]
[350270957,1737754241717,-500.0,0.00019677,2]
[350270958,1737754241727,-545.45,0.00019677,2]
[350270961,1737754241736,-953.35327194,0.00019677,2]
[350270962,1737754241746,-500.0,0.00019677,2]
[350270964,1737754241755,-500.0,0.00019677,2]
[350270966,1737754241764,-501.37,0.00019677,2]
[350270968,1737754241773,-500.0,0.00019677,2]
[350270970,1737754241782,-620.35,0.00019677,2]
[350270972,1737754241792,-629.25,0.00019677,2]
[350270974,1737754241801,-674.5,0.00019677,2]
[350270976,1737754241810,-500.0,0.00019677,2]
[350270978,1737754241819,-500.0,0.00019677,2]
[350270980,1737754241828,-836.52,0.00019677,2]
[350270982,1737754241838,-1028.07,0.00019677,2]
[350270984,1737754241847,-500.0,0.00019677,2]
[350270986,1737754241856,-519.84,0.00019677,2]
[350270988,1737754241865,-1194.61,0.00019677,2]
[350270990,1737754241874,-720.82,0.00019677,2]
[350270993,1737754241890,-500.0,0.00019677,2]
[350270995,1737754241903,-500.0,0.00019677,2]
[350270997,1737754241913,-500.0,0.00019677,2]
[350270999,1737754241922,-500.0,0.00019677,2]
[350271000,1737754241932,-1226.74,0.00019677,2]
[350271001,1737754241942,-861.13,0.00019677,2]
[350271002,1737754241951,-500.0,0.00019677,2]
[350271003,1737754241961,-500.0,0.00019677,2]
[350271004,1737754241975,-690.0,0.00019677,2]
[350271005,1737754241986,-500.0,0.00019677,2]
[350271008,1737754241995,-500.0,0.00019677,2]
[350271009,1737754242006,-500.0,0.00019677,2]
[350271011,1737754242018,-1053.69,0.00019677,2]
[350271014,1737754242030,-500.0,0.00019677,2]
[350271016,1737754242039,-500.0,0.00019677,2]
[350271018,1737754242050,-500.0,0.00019677,2]
[350271020,1737754242059,-500.0,0.00019677,2]
[350271022,1737754242069,-854.37,0.00019677,2]
[350271024,1737754242078,-500.0,0.00019677,2]
[350271026,1737754242087,-500.0,0.00019677,2]
[350271028,1737754242096,-1585.77,0.00019677,2]
[350271030,1737754242106,-500.0,0.00019677,2]
[350271032,1737754242115,-500.0,0.00019678,2]
[350271034,1737754242124,-2000.0,0.00019679,2]
[350271036,1737754242134,-200.0,0.00019679,2]
[350271038,1737754242144,-200.0,0.00019679,2]
[350271040,1737754242153,-2000.0,0.00019679,2]
[350271042,1737754242162,-200.0,0.00019679,2]
[350271044,1737754242172,-200.0,0.000197,7]
[350271046,1737754242182,-150.0,0.00019707,2]
[350271048,1737754242192,-201.42,0.00019711,2]
[350271050,1737754242201,-345.17541414,0.00019716,2]
[350271052,1737754242210,-150.0,0.00019717,2]
[350271054,1737754242220,-158.47563007,0.0001972,2]
[350271056,1737754242230,-150.0,0.00019728,2]
[350271058,1737754242239,-150.0,0.00019728,2]
[350271060,1737754242249,-150.0,0.00019731,2]
[350271062,1737754242258,-567.0,0.00019734,2]
[350271064,1737754242267,-150.0,0.00019734,2]
[350271066,1737754242276,-268.932,0.00019734,2]
[350271068,1737754242285,-157.76340859,0.0001974,2]
[350271070,1737754242295,-150.0,0.00019743,2]
[350271072,1737754242304,-150.0,0.00019744,2]
[350271074,1737754242314,-710.06116538,0.00019758,2]
[350271076,1737754242323,-4763.10604882,0.00019758,2]
[350271078,1737754242332,-2487.39448847,0.0001976,2]
[350271080,1737754242342,-253.5,0.00019762,2]
[350271097,1737754242351,-1250.90559962,0.00019764,2]
[350271100,1737754242508,-150.0,0.00019767,2]
[350271102,1737754242517,-4763.10604882,0.0001977,2]
[350271105,1737754242527,-1190.7765122,0.00019778,2]
[350271108,1737754242536,-253.5,0.0001978,2]
[350271110,1737754242545,-4763.10604882,0.00019787,2]
[350271113,1737754242555,-253.5,0.00019796,2]
[350271116,1737754242564,-150.0,0.00019796,2]
[350271119,1737754242573,-500.0,0.000198,7]
[350271122,1737754242583,-42705.4712179,0.000198,2]
[350271124,1737754242592,-1190.7765122,0.00019803,2]
[350271125,1737754242601,-500.0,0.00019813,2]
[350271128,1737754242611,-566.92,0.00019813,2]
[350271129,1737754242620,-500.0,0.00019813,2]
[350271131,1737754242629,-500.0,0.00019813,2]
[350271133,1737754242639,-551.89,0.00019813,2]
[350271135,1737754242648,-500.0,0.00019813,2]
[350271137,1737754242657,-500.0,0.00019813,2]
[350271139,1737754242667,-500.0,0.00019813,2]
[350271141,1737754242676,-625.67,0.00019813,2]
[350271143,1737754242685,-828.31,0.00019813,2]
[350271145,1737754242694,-1217.27,0.00019813,2]
[350271148,1737754242707,-500.0,0.00019813,2]
[350271149,1737754242717,-500.0,0.00019813,2]
[350271151,1737754242726,-500.0,0.00019813,2]
[350271153,1737754242736,-3220.73671469,0.00019813,2]
[350271156,1737754242745,-500.0,0.00019814,2]
[350271158,1737754242755,-500.0,0.00019814,2]
[350271160,1737754242765,-689.81,0.00019814,2]
[350271162,1737754242774,-440.89,0.00019814,2]
[350271164,1737754242783,-500.0,0.00019814,2]
[350271166,1737754242793,-500.0,0.00019814,2]
[350271168,1737754242803,-583.58888961,0.00019814,2]
[350271170,1737754242812,-344.74,0.00019814,2]
[350271172,1737754242821,-500.0,0.00019814,2]
[350271174,1737754242831,-500.0,0.00019814,2]
[350271176,1737754242841,-500.0,0.00019814,2]
[350271178,1737754242850,-500.0,0.00019814,2]
[350271180,1737754242860,-605.9,0.00019814,2]
[350271182,1737754242869,-666.26,0.00019814,2]
[350271184,1737754242879,-586.99,0.00019814,2]
[350271186,1737754242888,-500.0,0.00019814,2]
[350271188,1737754242898,-559.08,0.00019814,2]
[350271190,1737754242908,-500.0,0.00019814,2]
[350271193,1737754242919,-500.0,0.00019814,2]
[350271195,1737754242929,-500.0,0.00019814,2]
[350271197,1737754242939,-500.0,0.00019814,2]
[350271199,1737754242948,-956.0,0.00019814,2]
[350271200,1737754242958,-500.0,0.00019814,2]
[350271201,1737754242967,-500.0,0.00019814,2]
[350271202,1737754242977,-545.45,0.00019814,2]
[350271203,1737754242987,-500.0,0.00019814,2]
[350271204,1737754242996,-500.0,0.00019814,2]
[350271205,1737754243006,-501.37,0.00019814,2]
[350271207,1737754243017,-620.35,0.00019814,2]
[350271210,1737754243026,-629.25,0.00019814,2]
[350271213,1737754243036,-674.5,0.00019814,2]
[350271216,1737754243047,-500.0,0.00019814,2]
[350271219,1737754243056,-500.0,0.00019814,2]
[350271222,1737754243066,-836.52,0.00019814,2]
[350271225,1737754243075,-1028.07,0.00019814,2]
[350271228,1737754243085,-500.0,0.00019814,2]
[350271231,1737754243094,-519.84,0.00019814,2]
[350271234,1737754243104,-1194.61,0.00019814,2]
[350271237,1737754243113,-720.82,0.00019814,2]
[350271240,1737754243123,-500.0,0.00019814,2]
[350271243,1737754243132,-500.0,0.00019814,2]
[350271246,1737754243141,-500.0,0.00019814,2]
[350271249,1737754243151,-500.0,0.00019814,2]
[350271252,1737754243160,-1226.74,0.00019814,2]
[350271255,1737754243170,-861.13,0.00019814,2]
[350271258,1737754243179,-500.0,0.00019814,2]
[350271261,1737754243189,-690.0,0.00019814,2]
[350271264,1737754243199,-500.0,0.00019814,2]
[350271267,1737754243208,-500.0,0.00019814,2]
[350271270,1737754243218,-1053.69,0.00019814,2]
[350271273,1737754243229,-500.0,0.00019814,2]
[350271277,1737754243239,-500.0,0.00019814,2]
[350271280,1737754243248,-500.0,0.00019814,2]
[350271282,1737754243258,-500.0,0.00019814,2]
[350271285,1737754243268,-854.37,0.00019814,2]
[350271288,1737754243278,-187.10800726,0.00019814,2]
[350271291,1737754243287,-1585.77,0.00019814,2]
[350271295,1737754243297,-500.0,0.00019814,2]
[350271298,1737754243307,-500.0,0.00019815,2]
[350271301,1737754243316,-150.0,0.00019816,2]
[350271304,1737754243326,-187.0583418,0.00019818,3]
[350271307,1737754243335,-150.0,0.00019818,2]
[350271310,1737754243345,-150.0,0.00019821,2]
[350271313,1737754243355,-500.0,0.00019822,2]
[350271316,1737754243364,-4763.10604882,0.00019825,2]
[350271319,1737754243375,-150.0,0.00019827,2]
[350271322,1737754243384,-150.0,0.00019829,2]
[350271325,1737754243397,-1250.90559962,0.00019832,2]
[350271328,1737754243407,-4763.10604882,0.00019834,2]
[350271332,1737754243416,-1250.90559962,0.00019835,2]
[350271335,1737754243426,-1190.7765122,0.00019836,2]
[350271338,1737754243436,-2487.39448847,0.00019837,2]
[350271341,1737754243446,-500.0,0.00019839,2]
[350271343,1737754243455,-710.06116538,0.00019841,2]
[350271346,1737754243465,-710.06116538,0.00019842,2]
[350271349,1737754243474,-150.0,0.00019843,2]
[350271352,1737754243484,-150.0,0.00019846,2]
[350271354,1737754243493,-3220.73671469,0.00019849,2]
[350271357,1737754243502,-1190.7765122,0.00019854,2]
[350271360,1737754243512,-3220.73671469,0.00019857,2]
[350271362,1737754243521,-150.0,0.00019859,2]
[350271365,1737754243531,-2487.39448847,0.00019863,2]
[350271367,1737754243541,-1250.90559962,0.00019864,2]
[350271370,1737754243550,-1190.7765122,0.00019869,2]
[350271372,1737754243560,-3220.73671469,0.00019869,2]
[350271375,1737754243569,-2000.0,0.00019876,2]
[350271377,1737754243578,-200.0,0.00019876,2]
[350271380,1737754243588,-161.54388518,0.00019876,2]
[350271382,1737754243598,-417.22346017,0.00019878,2]
[350271385,1737754243607,-710.06116538,0.00019879,2]
[350271388,1737754243616,-150.0,0.00019879,2]
[350271390,1737754243626,-150.0,0.00019879,2]
[350271393,1737754243636,-202.0,0.0001988,2]
[350271395,1737754243645,-296034.51194238,0.0001988,2]
[350271397,1737754243655,-151.0,0.0001988,2]
[350271399,1737754243664,-189.17938,0.0001988,2]
[350271401,1737754243674,-189.17938,0.0001988,2]
[350271402,1737754243684,-151.0,0.0001988,2]
[350271404,1737754243694,-195.707072,0.0001988,2]
[350271405,1737754243704,-195.707072,0.0001988,2]
[350271407,1737754243713,-151.0,0.0001988,2]
[350271409,1737754243723,-150.0,0.00019881,2]
[350271410,1737754243733,-710.06116538,0.0001989,2]
[350271412,1737754243742,-158.47563007,0.00019893,2]
[350271414,1737754243751,-253.5,0.00019894,2]
[350271415,1737754243760,-150.0,0.00019894,2]
[350271417,1737754243770,-150.0,0.00019896,2]
[350271419,1737754243779,-253.5,0.00019896,2]
[350271420,1737754243788,-3220.73671469,0.00019897,2]
[350271422,1737754243798,-2487.39448847,0.00019899,2]
[350271424,1737754243807,-245.07430388,0.00019899,2]
[350271425,1737754243816,-1250.90559962,0.00019899,2]
[350271427,1737754243825,-2487.39448847,0.000199,2]
[350271429,1737754243835,-700.0,0.000199,7]
[350271431,1737754243848,-2196.85638549,0.000199,7]
[350271433,1737754243862,-157.76340859,0.000199,2]
[350271435,1737754243876,-698.98639893,0.000199,2]
[350271436,1737754243888,-368.75170099,0.00019907,2]
[350271438,1737754243899,-1000.0,0.00019911,2]
[350271440,1737754243911,-858.52909479,0.00019926,2]
[350271442,1737754243924,-5800.0,0.00019927,2]
[350271444,1737754243937,-150.0,0.0001993,2]
[350271446,1737754243949,-150.0,0.00019934,2]
[350271448,1737754243962,-1000.0,0.00019937,2]
[350271450,1737754243980,-150.0,0.00019937,2]
[350271451,1737754243993,-157.22097478,0.00019941,2]
[350271453,1737754244005,-530.24,0.0001995,2]
[350271455,1737754244017,-566.92,0.0001995,2]
[350271457,1737754244028,-500.0,0.0001995,2]
[350271460,1737754244039,-500.0,0.0001995,2]
[350271464,1737754244052,-551.89,0.0001995,2]
[350271467,1737754244068,-500.0,0.0001995,2]
[350271471,1737754244080,-500.0,0.0001995,2]
[350271474,1737754244092,-514.0,0.0001995,2]
[350271477,1737754244104,-625.67,0.0001995,2]
[350271481,1737754244117,-828.31,0.0001995,2]
[350271485,1737754244130,-1217.27,0.0001995,2]
[350271487,1737754244142,-500.0,0.0001995,2]
[350271488,1737754244155,-500.0,0.0001995,2]
[350271489,1737754244169,-500.0,0.0001995,2]
[350271490,1737754244182,-500.0,0.00019951,2]
[350271491,1737754244194,-500.0,0.00019951,2]
[350271492,1737754244207,-689.81,0.00019951,2]
[350271493,1737754244218,-500.0,0.00019951,2]
[350271494,1737754244230,-500.0,0.00019951,2]
[350271495,1737754244242,-500.0,0.00019951,2]
[350271497,1737754244255,-500.0,0.00019951,2]
[350271499,1737754244270,-500.0,0.00019951,2]
[350271501,1737754244283,-500.0,0.00019951,2]
[350271503,1737754244294,-605.9,0.00019951,2]
[350271505,1737754244305,-666.26,0.00019951,2]
[350271508,1737754244315,-586.99,0.00019951,2]
[350271510,1737754244327,-646.14,0.00019951,2]
[350271512,1737754244339,-559.08,0.00019951,2]
[350271515,1737754244354,-500.0,0.00019951,2]
[350271517,1737754244365,-500.0,0.00019951,2]
[350271519,1737754244375,-500.0,0.00019951,2]
[350271521,1737754244386,-500.0,0.00019951,2]
[350271523,1737754244397,-956.0,0.00019951,2]
[350271525,1737754244408,-500.0,0.00019951,2]
[350271527,1737754244421,-500.0,0.00019951,2]
[350271530,1737754244435,-545.45,0.00019951,2]
[350271532,1737754244446,-500.0,0.00019951,2]
[350271534,1737754244457,-500.0,0.00019951,2]
[350271536,1737754244467,-501.37,0.00019951,2]
[350271537,1737754244480,-620.35,0.00019951,2]
[350271539,1737754244491,-629.25,0.00019951,2]
[350271541,1737754244503,-674.5,0.00019951,2]
[350271543,1737754244515,-500.0,0.00019951,2]
[350271546,1737754244526,-500.0,0.00019951,2]
[350271548,1737754244538,-836.52,0.00019951,2]
[350271550,1737754244551,-1028.07,0.00019951,2]
[350271552,1737754244562,-500.0,0.00019951,2]
[350271555,1737754244574,-519.84,0.00019951,2]
[350271557,1737754244586,-1194.61,0.00019951,2]
[350271559,1737754244598,-720.82,0.00019951,2]
[350271562,1737754244609,-500.0,0.00019951,2]
[350271564,1737754244621,-500.0,0.00019951,2]
[350271565,1737754244633,-584.87,0.00019951,2]
[350271566,1737754244644,-500.0,0.00019951,2]
[350271567,1737754244656,-1226.74,0.00019951,2]
[350271568,1737754244667,-861.13,0.00019951,2]
[350271569,1737754244679,-500.0,0.00019951,2]
[350271570,1737754244690,-690.0,0.00019951,2]
[350271571,1737754244702,-500.0,0.00019951,2]
[350271572,1737754244713,-500.0,0.00019951,2]
[350271573,1737754244724,-1053.69,0.00019951,2]
[350271574,1737754244735,-500.0,0.00019951,2]
[350271575,1737754244746,-500.0,0.00019951,2]
[350271576,1737754244758,-500.0,0.00019951,2]
[350271577,1737754244769,-500.0,0.00019951,2]
[350271578,1737754244780,-854.37,0.00019951,2]
[350271579,1737754244791,-1585.77,0.00019951,2]
[350271580,1737754244802,-500.0,0.00019951,2]
[350271581,1737754244812,-500.0,0.00019952,2]
[350271582,1737754244824,-1212.0,0.00019953,2]
[350271583,1737754244834,-231.85602074,0.00019963,2]
[350271584,1737754244846,-150.0,0.00019963,2]
[350271585,1737754244858,-205.394,0.00019963,2]
[350271586,1737754244868,-150.217,0.00019963,2]
[350271587,1737754244879,-150.0,0.00019965,2]
[350271588,1737754244890,-698.98639873,0.00019969,2]
[350271589,1737754244901,-8823.34904966,0.00019971,2]
[350271590,1737754244912,-150.0,0.00019973,4]
[350271591,1737754244923,-150.0,0.00019973,4]
[350271592,1737754244936,-150.0,0.00019973,4]
[350271593,1737754244946,-222.16405261,0.00019973,4]
[350271594,1737754244958,-242.49362371,0.00019973,4]
[350271595,1737754244969,-150.0,0.00019973,4]
[350271596,1737754244983,-500.0,0.00019973,2]
[350271597,1737754244995,-500.0,0.00019973,2]
[350271598,1737754245007,-500.0,0.00019973,2]
[350271599,1737754245019,-22771.60446339,0.00019999,2]
[350271600,1737754245592,-6231.58844683,0.00019031,2]
[350271601,1737754245608,-2072.70200859,0.00019031,2]
[350271602,1737754245619,-151.0,0.00019734,2]
[350271603,1737754245628,-55545.33394987,0.00019999,2]
[350271605,1737754245797,-148.09158674,0.00019999,2]
[350271606,1737754245807,-30882.42623263,0.0002,2]
[350271607,1737754245895,-246.29,0.00018039,2]
[350271608,1737754245906,-175.27144,0.00019283,2]
[350271609,1737754246089,-491.51801186,0.00019283,2]
[350271610,1737754246137,-7637.50100348,0.00019283,2]
[350271611,1737754246148,-2265.98339178,0.0002,2]
[350271612,1737754246159,-592.74577533,0.0002,2]
[350271613,1737754246170,-2379.61555635,0.0002,2]
[350271614,1737754246327,-129.11735279,0.0002,2]
[350271615,1737754246339,-25659.38639999,0.0002,2]
[350271618,1737754246462,-2423.50084056,0.0002,2]
[350271619,1737754246474,-18665.2371507,0.0002,2]
[350271620,1737754246485,-255.5359996,0.0002,2]
[350271621,1737754246497,-4358.52067333,0.0002,2]
[350271622,1737754246526,-1053.3523,0.00019535,2]
[350271623,1737754246741,-746.25447325,0.00019535,2]
[350271624,1737754246800,-1299.37945521,0.00019535,2]
[350271625,1737754246812,-1032.93175381,0.00019535,2]
[350271626,1737754421103,152.0017432,0.00022005,120]
[350271627,1737754598744,150.0,0.00012501,2]
[350271628,1737755040665,190.8,0.00010137,2]
[350271630,1737755064463,200.0,0.00012438,2]
[350271631,1737755351121,-214.69,0.00014297,2]
[350271632,1737755351145,-1067.86,0.00015953,2]
[350271633,1737755351166,-250.0,0.00017023,2]
[350271634,1737755351186,-2414.669304,0.00017227,2]
[350271635,1737755357103,-15305.210696,0.00017227,2]
[350271636,1737755357126,-200.0,0.00017266,2]
[350271637,1737755357147,-764.82,0.00017268,2]
[350271638,1737755357167,-324.15,0.00017279,2]
[350271639,1737755357188,-250.0,0.00017289,2]
[350271640,1737755357208,-590.33,0.000173,2]
[350271641,1737755357229,-250.0,0.00017319,2]
[350271642,1737755357250,-153.47010744,0.00017329,2]
[350271643,1737755357269,-1423.32,0.00017338,2]
[350271644,1737755357289,-242.48,0.00017354,2]
[350271645,1737755357314,-845.93,0.00017389,2]
[350271646,1737755357334,-300.0,0.00017408,2]
[350271647,1737755357355,-536.88,0.00017426,2]
[350271648,1737755357376,-399.64,0.00017429,2]
[350271649,1737755357395,-150.0,0.00017488,2]
[350271650,1737755357415,-6272.17,0.00017667,2]
[350271651,1737755357435,-250.0,0.0001768,2]
[350271652,1737755357455,-398.95,0.00017695,2]
[350271653,1737755357475,-17412.73200197,0.00017743,2]
[350271654,1737755357494,-550.0,0.00017743,2]